Cogmind - Beta 10.2 @@@ ROGUE MODE // 2021.09.29 @ 23:46:00 Player: User Result: Destroyed by G-47 Trooper with Particle Gun Performance ------------- Evolutions (2) 1000 Regions Visited (5) 1000 Robots Destroyed (36) 180 Value Destroyed (1221) 1221 Prototype IDs (3) 60 Alien Tech Used (0) 0 Bonus (457) 457 TOTAL SCORE: 3918 Bonus ------- High Alert Combat Kills 157 Aligned with FarCom 300 Cogmind --------- Core Integrity 0/550 Matter 272/300 Energy 305/400 System Corruption 0% Temperature Cool (9) Movement Flying (40) Location -8/Materials Parts ------- > --- POWER (2) -------- (None) > --- PROPULSION (2) --- VTOL Module > --- UTILITY (4) ------ Improved Heat Sink Compact Battery Advanced Weight Redist. System Visual Processing Unit > --- WEAPON (3) ------- High-powered Shotgun > --- INVENTORY (4) ---- Medium Storage Unit Improved Sensor Array Improved Trap Extractor Peak State ------------ > --- POWER ------------ Light Ion Engine Light Nuclear Core > --- PROPULSION ------- Compact Wheel Compact Wheel > --- UTILITY ---------- Small Storage Unit Visual Processing Unit Hardened Light Armor Plating Sensor Drone Bay > --- WEAPON ----------- AWS/Gauss Rocket Launcher > --- INVENTORY -------- Aluminum Leg Aluminum Leg Wheel Improved Heat Sink Core Shielding Power Maul [Rating: 38] Favorites ----------- Power Light Ion Engine Engine Light Ion Engine Power Core Light Nuclear Core Propulsion Compact Wheel Leg Aluminum Leg Wheel Compact Wheel Flight Unit VTOL Module Utility Small Storage Unit Device Sensor Drone Bay Storage Small Storage Unit Processor Visual Processing Unit Protection Hardened Light Armor Plating Weapon AWS/Gauss Energy Gun Small Laser Energy Cannon Light EM Pulse Cannon Ballistic Gun AWS/Gauss Launcher Rocket Launcher Impact Weapon Power Maul Build | -11 -10 -10 -10 -9 -8 ------- Run | Scr Mat Min Exi Min Mat Slots Evolved 4 | . . . . . 4 Power 1 | . . . . . 1 Propulsion . | . . . . . . Utility 2 | . . . . . 2 Weapon 1 | . . . . . 1 Parts Attached 37 | 6 1 . 3 1 26 Power 7 | 1 . . . 1 5 Engine 5 | 1 . . . 1 3 Core 2 | . . . . . 2 Reactor . | . . . . . . Propulsion 7 | 2 . . . . 5 Treads . | . . . . . . Leg 2 | . . . . . 2 Wheel 4 | 2 . . . . 2 Hover . | . . . . . . Flight 1 | . . . . . 1 Utility 12 | 1 1 . . . 10 Device 5 | . . . . . 5 Storage 2 | 1 . . . . 1 Processor 1 | . 1 . . . . Hackware . | . . . . . . Protection 4 | . . . . . 4 Artifact . | . . . . . . Weapon 11 | 2 . . 3 . 6 Energy Gun 3 | 1 . . 1 . 1 Energy Cannon 1 | . . . . . 1 Ballistic Gun 4 | 1 . . 2 . 1 Ballistic Cannon . | . . . . . . Launcher 2 | . . . . . 2 Special Weapon . | . . . . . . Impact Weapon 1 | . . . . . 1 Slashing Weapon . | . . . . . . Piercing Weapon . | . . . . . . Special Melee Weapon . | . . . . . . Unidentified Prototypes 3 | . . . 2 . 1 Parts Lost 18 | . . . . . 18 Power 6 | . . . . . 6 Propulsion 4 | . . . . . 4 Utility 4 | . . . . . 4 Weapon 4 | . . . . . 4 Highest Loss Streak 12 | . . . . . 12 Average Slot Usage (%) 83 | . 88 100 89 85 72 Engine 11 | . 14 14 14 14 8 Core 1 | . . . . . 3 Wheel 21 | . 28 28 28 28 10 Device 3 | . . . . . 8 Storage 12 | . 14 14 14 14 8 Processor 10 | . 3 14 14 14 9 Protection 2 | . . . . . 5 Energy Gun 4 | . 14 14 4 . . Ballistic Gun 11 | . 14 14 13 14 6 Launcher 2 | . . . . . 5 Naked Turns . | . . . . . . Heaviest Build 45 | 10 10 10 17 17 45 Greatest Support 32 | 26 26 26 26 26 32 Greatest Overweight (x) 6 | 2 . . . . 6 Average Overweight (x) . | . . . . . . Largest Inventory Capacity 6 | 6 6 6 6 6 6 Average Capacity 5 | 5 6 6 6 6 5 Most Carried 6 | 5 6 6 6 6 6 Average Carried 4 | 2 4 6 4 5 3 Final Capacity 6 | 6 6 6 6 6 4 Final Carried 6 | 4 6 6 4 6 3 Class Distribution -------------------- 74% | Mutant 17% | Skirmisher 4% | Scavenger-Skirmisher 3% | Scout Dominant Class ---------------- Mutant | -10/Materials Mutant | -10/Mines Mutant | -10/Exiles Mutant | -9/Mines Skirmisher | -8/Materials Resources | -11 -10 -10 -10 -9 -8 ----------- Run | Scr Mat Min Exi Min Mat Matter Collected 628 | 201 29 . . 104 294 Remotely . | . . . . . . Salvage Created 1197 | . 40 . . 205 952 Parts 61 | . 8 . . 12 41 Haulers Intercepted 1 | . . . . . 1 Recyclers Shooed 1 | . . . . . 1 Parts Field Recycled . | . . . . . . Retrieved Matter . | . . . . . . Parts Self-Destructed . | . . . . . . Prevented . | . . . . . . Kills | -11 -10 -10 -10 -9 -8 ------- Run | Scr Mat Min Exi Min Mat Combat Hostiles Destroyed 32 | . 1 . . 9 22 Guns 20 | . 1 . . 9 10 AOE 8 | . . . . . 8 Classes Destroyed 7 | . 2 . . 2 3 Hauler 1 | . . . . . 1 Watcher 3 | . 1 . . . 2 Swarmer 10 | . 1 . . 6 3 Grunt 15 | . . . . 2 13 Brawler 2 | . . . . . 2 Duelist 2 | . . . . 1 1 Sentry 3 | . . . . . 3 Best Kill Streak 13 | . 1 . . 4 13 Combat Bots Only 11 | . 1 . . 4 11 Max Kills in Single Turn 3 | . 1 . . 1 3 Gunslinging . | . . . . . . Exploded 2 | . . . . . 2 Melee . | . . . . . . Uniques/NPCs Destroyed . | . . . . . . Combat | -11 -10 -10 -10 -9 -8 -------- Run | Scr Mat Min Exi Min Mat Damage Taken 2435 | . 55 . . 80 2300 Core 590 | . . . . 37 553 Absorbed by Shields . | . . . . . . Core Remaining (%) 92 | 100 . . . 85 . Volleys Fired 32 | . 8 . . . 24 Largest 2 | . 2 . . . 1 Hottest 60 | . 60 . . . 56 Shots Fired 119 | . 16 . . 25 78 Gun 102 | . 16 . . 25 61 Cannon 8 | . . . . . 8 Launcher 9 | . . . . . 9 Special . | . . . . . . Kinetic 94 | . 8 . . 25 61 Thermal 8 | . 8 . . . . Explosive 9 | . . . . . 9 Electromagnetic 8 | . . . . . 8 Robot Hit Streak 13 | . 1 . . 6 13 Robot Miss Streak 3 | . 3 . . 2 2 Penetration Max . | . . . . . . Secondary Targets . | . . . . . . Autonomous 80 | . . . . 25 55 Shots Hit Robots 104 | . 5 . . 17 82 Core Hits 52 | . 3 . . 9 40 Critical Hits 3 | . . . . 1 2 Critical Kills . | . . . . . . Critical Parts Destroyed 3 | . . . . 1 2 Melee Attacks 22 | . . . . . 22 Impact 22 | . . . . . 22 Slashing . | . . . . . . Piercing . | . . . . . . Sneak Attacks . | . . . . . . Combat Hostiles . | . . . . . . Follow-up Attacks . | . . . . . . Damage Inflicted 3981 | . 46 . . 586 3349 Guns 2291 | . 46 . . 586 1659 Cannons 119 | . . . . . 119 Explosions 1024 | . . . . . 1024 Melee 547 | . . . . . 547 Ramming . | . . . . . . Kinetic 2259 | . 14 . . 586 1659 Thermal 249 | . 32 . . . 217 Explosive 807 | . . . . . 807 Electromagnetic 119 | . . . . . 119 Impact 547 | . . . . . 547 Slashing . | . . . . . . Piercing . | . . . . . . Highest Corruption . | . . . . . . Average Corruption . | . . . . . . Corruption Purged . | . . . . . . Overload Shots . | . . . . . . Overflow Damage 128 | . . . . . 128 Projectiles . | . . . . . . Explosions 20 | . . . . . 20 Melee 108 | . . . . . 108 Knockbacks . | . . . . . . Impact . | . . . . . . Kinetic . | . . . . . . Secondary . | . . . . . . Self-Inflicted Damage 87 | . . . . . 87 Shots 3 | . . . . . 3 Rammed . | . . . . . . Targets Rammed . | . . . . . . Kicked . | . . . . . . Crushed . | . . . . . . Highest Temperature 303 | . . . . . 303 Average Temperature 130 | . . . . . 130 Received Heat Transfer 909 | . . . . . 909 Effects 1 | . . . . . 1 Energy Bleed 1 | . . . . . 1 Siege Activations . | . . . . . . Robots Corrupted . | . . . . . . Combat Hostiles . | . . . . . . Parts Fried 3 | . . . . . 3 Impact Corruptions 6 | . . . . . 6 Robots Melted . | . . . . . . Combat Hostiles . | . . . . . . Parts Melted . | . . . . . . Heat Transferred 225 | . 75 . . . 150 Parts Sabotaged . | . . . . . . Parts Stolen . | . . . . . . Parts Stripped . | . . . . . . Power Chain Reactions . | . . . . . . Missiles Intercepted . | . . . . . . Alert | -11 -10 -10 -10 -9 -8 ------- Run | Scr Mat Min Exi Min Mat Peak Influence 669 | . 102 39 . 210 669 Initial 95 | . . 39 . . 95 Average 255 | . 48 39 . 132 460 Maximum Alert Level 2 | . . . . 1 2 Low Security (%) 59 | 100 100 100 . 97 16 Level 1 1 | . . . . 2 2 Level 2 39 | . . . . . 80 Level 3 . | . . . . . . Level 4 . | . . . . . . Level 5 . | . . . . . . High Security . | . . . . . . Max Security . | . . . . . . Squads Dispatched 8 | . . . . . 8 Investigation 1 | . . . . . 1 Extermination . | . . . . . . Reinforcement 2 | . . . . . 2 Assault 2 | . . . . . 2 Garrison 3 | . . . . . 3 Intercept . | . . . . . . Construction Impeded . | . . . . . . Haulers Reinforced . | . . . . . . Stealth | -11 -10 -10 -10 -9 -8 --------- Run | Scr Mat Min Exi Min Mat Distress Signals 3 | . 2 . . . 1 Communications Jammed . | . . . . . . Distress Signals . | . . . . . . Times Spotted 53 | . 9 . . 10 34 Peak Tracking Total 8 | . 3 . . 4 8 Tactical Retreats 5 | . 1 . . 1 3 Traps | -11 -10 -10 -10 -9 -8 ------- Run | Scr Mat Min Exi Min Mat Traps Triggered 1 | . . . . . 1 Indirectly . | . . . . . . Trap Hack Attempts . | . . . . . . Triggered . | . . . . . . Disarmed . | . . . . . . Reprogrammed . | . . . . . . Reused . | . . . . . . Traps Extracted . | . . . . . . Installed . | . . . . . . Triggered . | . . . . . . Machines | -11 -10 -10 -10 -9 -8 ---------- Run | Scr Mat Min Exi Min Mat Machines Disabled 7 | . . . . 1 6 Max in Single Turn 3 | . . . . 1 3 Machines Sabotaged . | . . . . . . Garrisons Compromised . | . . . . . . Overloaded Fab Kills . | . . . . . . Fab Network Shutdowns . | . . . . . . Hacking | -11 -10 -10 -10 -9 -8 --------- Run | Scr Mat Min Exi Min Mat Machines Accessed 8 | . 1 . 4 1 2 Terminals 1 | . 1 . . . . Fabricators . | . . . . . . Repair Stations 1 | . . . . . 1 Recycling Units 1 | . . . . . 1 Scanalyzers . | . . . . . . Garrison Access . | . . . . . . Total Hacks 57 | . 3 . 49 1 4 Successful 55 | . 1 . 49 1 4 Failed 2 | . 2 . . . . Catastrophic . | . . . . . . Database Lockouts . | . . . . . . Manual 1 | . . . 1 . . Terminals 3 | . 3 . . . . Fabricators . | . . . . . . Repair Stations 2 | . . . . . 2 Recycling Units 2 | . . . . . 2 Scanalyzers . | . . . . . . Garrison Access . | . . . . . . Terminal Hacks 51 | . 1 . 49 1 . Record 49 | . . . 49 . . Open Door 1 | . . . . 1 . Registered Components 1 | . 1 . . . . Fabricator Hacks . | . . . . . . Repair Station Hacks 2 | . . . . . 2 Scan Component 1 | . . . . . 1 Repair 1 | . . . . . 1 Recycling Unit Hacks 2 | . . . . . 2 Report Inventory 1 | . . . . . 1 Retrieve Components 1 | . . . . . 1 Scanalyzer . | . . . . . . Garrison Access Hacks . | . . . . . . Unauthorized Hacks . | . . . . . . Terminals . | . . . . . . Fabricators . | . . . . . . Repair Stations . | . . . . . . Recycling Units . | . . . . . . Scanalyzers . | . . . . . . Garrison Access . | . . . . . . Data Cores Recovered . | . . . . . . Used . | . . . . . . Hacking Detections . | . . . . . . Full Trace Events . | . . . . . . Feedback Events . | . . . . . . Feedback Blocked . | . . . . . . Robot Schematics Acquired . | . . . . . . Robots Built . | . . . . . . Matter . | . . . . . . Time . | . . . . . . Total Robot Build Rating . | . . . . . . Part Schematics Acquired . | . . . . . . Parts Built . | . . . . . . Matter . | . . . . . . Time . | . . . . . . Total Part Build Rating . | . . . . . . Parts Repaired 1 | . . . . . 1 Time 26 | . . . . . 26 Parts Recycled . | . . . . . . Recycled Matter . | . . . . . . Retrieved Matter . | . . . . . . Retrieved Components 7 | . . . . . 7 Parts Scanalyzed . | . . . . . . Part Schematics Acquired . | . . . . . . Parts Damaged . | . . . . . . Bothacking | -11 -10 -10 -10 -9 -8 ------------ Run | Scr Mat Min Exi Min Mat Used RIF Installer . | . . . . . . Robots Hacked . | . . . . . . Non-combat . | . . . . . . Combat . | . . . . . . Robot Hacks Applied . | . . . . . . Relay Couplers Released . | . . . . . . Robots Rewired . | . . . . . . Allies Hacked . | . . . . . . Hacks Repelled . | . . . . . . Allies | -11 -10 -10 -10 -9 -8 -------- Run | Scr Mat Min Exi Min Mat Total Allies . | . . . . . . Largest Group . | . . . . . . Highest-Rated Group . | . . . . . . Highest-Rated Ally . | . . . . . . Total Orders . | . . . . . . Ally Attacks . | . . . . . . Total Damage . | . . . . . . Kills . | . . . . . . Allies Corrupted . | . . . . . . Allies Melted . | . . . . . . Intel | -11 -10 -10 -10 -9 -8 ------- Run | Scr Mat Min Exi Min Mat Robot Analysis Total . | . . . . . . Derelict Logs Recovered 2 | . . 1 . 1 . Drone Launches 13 | . . . . . 13 Drone Recoveries 4 | . . . . . 4 Exploration | -11 -10 -10 -10 -9 -8 ------------- Run | Scr Mat Min Exi Min Mat Turns Passed 1928 | 81 285 183 474 201 704 Spaces Moved 1618 | 60 191 190 517 186 474 Core 45 | 35 . . . . 10 Treads . | . . . . . . Legs 10 | . . . . . 10 Wheels 1398 | 25 191 190 517 186 289 Hover . | . . . . . . Flight 165 | . . . . . 165 Fastest Speed 40 | 50 90 90 90 90 40 Average Speed 88 | 98 90 90 90 90 84 Slowest Speed 350 | 150 90 90 90 90 350 Overloaded Moves . | . . . . . . Propulsion Burnouts . | . . . . . . Robots Hopped . | . . . . . . Cave-ins Triggered . | . . . . . . Exploration Rate (%) 47 | 3 35 62 94 55 37 Regions Visited 5 Branch Regions 3 Pre-discovered Areas 2 | . . . 1 1 . Known Exits Taken . | . . . . . . Unknown Exits Taken 5 | 1 1 1 1 1 . Scrap Searched 1 | . . . . 1 . Spaces Dug . | . . . . . . Terrain Destroyed 127 | . . . . 15 112 Melee . | . . . . . . Projectile 27 | . . . . 15 12 AOE 100 | . . . . . 100 Terrain Rammed . | . . . . . . Walls Destroyed . | . . . . . . Machines Disabled . | . . . . . . Actions | -11 -10 -10 -10 -9 -8 --------- Run | Scr Mat Min Exi Min Mat Total 2039 | 81 287 201 528 221 721 Wait 273 | 6 85 12 . 23 147 Move 1613 | 59 190 189 516 185 474 Hop . | . . . . . . Pick Up 45 | 10 3 . 3 7 22 Fast Attach . | . . . . . . Attach 32 | 6 1 . 3 . 22 Detach . | . . . . . . Swap 5 | . . . . 1 4 Drop 17 | . . . 6 5 6 Fire 32 | . 8 . . . 24 Melee 22 | . . . . . 22 Ram . | . . . . . . Kick . | . . . . . . Crush . | . . . . . . Escape Stasis . | . . . . . . Rewire . | . . . . . . Trap . | . . . . . . Miscellaneous . | . . . . . . Route ------- -11/Scrapyard -10/Materials -10/Mines -10/Exiles (discovered 2 exits: *Min x2) -9/Mines -8/Materials (discovered 1 exit: [*Fac]) History --------- Turn | Location | Event 3 | -11/Scrapyard | Discovered new exit (range 16) 82 | -11/Scrapyard | Entered Materials 322 | -10/Materials | Build established: Mutant 355 | -10/Materials | Discovered new exit (range 14) 367 | -10/Materials | Entered Mines 396 | -10/Mines | Learned 2 Materials zone layouts 546 | -10/Mines | Deemed a non-threat by the Exiles lab entrance 546 | -10/Mines | Discovered new exit (range 5) 550 | -10/Mines | Entered Exiles 562 | -10/Exiles | Discovered new exit (range 17) 572 | -10/Exiles | Met 8R-AWN 588 | -10/Exiles | Met EX-HEX 617 | -10/Exiles | Met EX-BIN 688 | -10/Exiles | Aligned with FarCom system 689 | -10/Exiles | Given EX-Vault access code 711 | -10/Exiles | Opened EX-Vault 716 | -10/Exiles | Found Prototype Ballistic Gun 718 | -10/Exiles | Identified AWS/Gauss 722 | -10/Exiles | Found Prototype Energy Gun 723 | -10/Exiles | Identified AWS/Thermal 750 | -10/Exiles | Warned to stay clear of 0b10 Research branches 812 | -10/Exiles | Met EX-DEC 835 | -10/Exiles | Visited The Gauntlet 974 | -10/Exiles | Learned location of Zion (-6) 1011 | -10/Exiles | Discovered new exit (range 17) 1024 | -10/Exiles | Left Exiles lab with AWS/Gauss 1024 | -10/Exiles | Entered Mines 1075 | -9/Mines | Found the Drone Emporium 1079 | -9/Mines | Found Prototype Device 1129 | -9/Mines | Received a Rocket Launcher from a helpful Derelict 1214 | -9/Mines | Discovered new exit (range 8) 1225 | -9/Mines | Entered Materials 1225 | -8/Materials | Evolved 4 slots: Power x1, Utility x2, Weapon x1 1226 | -8/Materials | Identified Sensor Drone Bay 1263 | -8/Materials | Repaired Com. Wheel 1388 | -8/Materials | Destroyed 11 combat bots 1625 | -8/Materials | First assault squad dispatched 1637 | -8/Materials | Garrison activated, responded to threat 1692 | -8/Materials | Lost 3 parts (1p2n) 1734 | -8/Materials | Core integrity fell below 50% 1753 | -8/Materials | Core integrity fell below 20% 1789 | -8/Materials | Lost 12 parts (2p2n4u4w) 1900 | -8/Materials | Discovered new exit (range 18) 1929 | -8/Materials | Destroyed by G-47 Trooper with Particle Gun Last Messages --------------- Acquired Imp. Salvage Targeting Computer. Acquired Med. Storage Unit. Acquired Imp. Sensor Array. Acquired Imp. Trap Extractor. Acquired Hpw. Shotgun. Dropped Imp. Salvage Targeting Computer. Acquired Adv. Weight Redist. System. Dropped Imp. Sensor Array. Acquired Imp. Sensor Array. O-16 Technician: "IFF HANDSHAKE FAILED. SECURING TERMINAL." ALERT: Hostiles spotted, dispatching reinforcements to Terminal M005. Acquired 20 matter. Acquired 10 matter. EXIT=FOUND G-47 Trooper suffers critical hit. Destroyed Imp. Heat Sink. G-47 Trooper destroyed. K-01 Serf collects debris. Electrolysis Chamber disabled. Map ----- +----------------------------------------------------+ | ??? ###+####### """ #" ?????????????????????? | | ???###### #??# """ #" ?????????????????????? | | ????????# #??# # ?????????????????????? | | ????????# #??##########?????????????????????? | | ????????# #???????????#?????????????????????? | | ????????# #???????????#?????????????????????? | | ????????# #???????????#?????????????????????? | | ????????########???????????#?????????????????????? | | ???????????????????????????#?????????????????????? | | ??????################???????????????????????????? | | ####### ! ! # #???????????????????????????? | | # # % #???????????????????????????? | | # """ # #??????????????Y????????????? | | # """ # #???????????????????????????? | | """" # """ # #???????????????????????????? | | """" #!!! # !!!#???????????????????????????? | | """" %#!!! # !! #???????????????????????????? | | #!!! # !! #???????????????????????????? | | #######+### ########????????????????????? | | +########## ###+### ###+######+##????????? | | ^^ % ????????? | | ^^ % %